[Event "Petrov Memorial Rapid"]
[Site "Jurmala"]
[Date "2015.03.08"]
[Round "11"]
[White "Sakaev, Konstantin"]
[Black "Stocek, Jiri"]
[Result "1-0"]
[ECO "E11"]
[WhiteElo "2615"]
[BlackElo "2513"]
[Annotator "Robot 11"]
[PlyCount "105"]
[EventDate "2015.??.??"]
[EventCountry "LAT"]
[TimeControl "840+5"]

1. d4 {[%emt 0:00:00]} Nf6 {[%emt 0:00:00]} 2. Nf3 {[%emt 0:00:00]} e6 {[%emt
0:00:00]} 3. c4 {[%emt 0:00:00]} Bb4+ {[%emt 0:00:00]} 4. Bd2 {[%emt 0:00:00]}
a5 {[%emt 0:00:00]} 5. g3 {[%emt 0:00:00]} O-O {[%emt 0:00:33]} 6. Bg2 {[%emt
0:00:00]} d5 {[%emt 0:00:03]} 7. Qc2 {[%emt 0:00:00]} h6 {[%emt 0:00:17]} 8.
O-O {[%emt 0:00:00]} Re8 {[%emt 0:00:03]} 9. Bf4 {[%emt 0:00:00]} Bf8 {[%emt 0:
00:31]} 10. cxd5 {[%emt 0:00:00]} Nxd5 {[%emt 0:00:07]} 11. Bd2 {[%emt 0:00:00]
} b6 {[%emt 0:00:51]} 12. Rd1 {[%emt 0:00:10]} Ba6 {[%emt 0:00:32]} 13. Nc3 {
[%emt 0:00:22]} Nd7 {[%emt 0:00:27]} 14. a3 {[%emt 0:01:42]} c5 {[%emt 0:00:50]
} 15. dxc5 {[%emt 0:01:44]} Nxc5 {[%emt 0:01:41]} 16. Nxd5 {[%emt 0:00:21]}
exd5 {[%emt 0:00:08]} 17. Be3 {[%emt 0:00:02]} Rc8 {[%emt 0:01:50]} 18. Bh3 {
[%emt 0:00:06]} Rc7 {[%emt 0:00:35]} 19. Rac1 {[%emt 0:00:13]} Rxe3 {[%emt 0:
00:13]} 20. fxe3 {[%emt 0:00:00]} Qe8 {[%emt 0:00:14]} 21. Kh1 {[%emt 0:02:34]}
Qxe3 {[%emt 0:00:35]} 22. Qd2 {[%emt 0:00:05]} Qe4 {[%emt 0:01:12]} 23. Qxd5 {
[%emt 0:01:22]} Bxe2 {[%emt 0:00:18]} 24. Qxe4 {[%emt 0:00:09]} Nxe4 {[%emt 0:
00:03]} 25. Rxc7 {[%emt 0:00:01]} Bxd1 {[%emt 0:01:18]} 26. Ne5 {[%emt 0:01:12]
} Nf2+ {[%emt 0:00:18]} 27. Kg2 {[%emt 0:00:00]} Nxh3 {[%emt 0:00:02]} 28. Kxh3
{[%emt 0:00:00]} Bb3 {[%emt 0:00:02]} 29. Nc4 {[%emt 0:01:09]} Bc5 {[%emt 0:00:
14]} 30. Rc8+ {[%emt 0:01:37]} Kh7 {[%emt 0:00:03]} 31. Rxc5 {[%emt 0:00:00]}
bxc5 {[%emt 0:00:04]} 32. Nxa5 {[%emt 0:00:01]} Be6+ {[%emt 0:00:28]} 33. Kg2 {
[%emt 0:00:03]} Kg6 {[%emt 0:00:13]} 34. Kf2 {[%emt 0:00:09]} Bd5 {[%emt 0:00:
04]} 35. b4 {[%emt 0:00:08]} cxb4 {[%emt 0:00:08]} 36. axb4 {[%emt 0:00:00]}
Kf5 {[%emt 0:00:05]} 37. b5 {[%emt 0:00:12]} Ke5 {[%emt 0:00:41]} 38. Ke3 {
[%emt 0:00:16]} g5 {[%emt 0:00:28]} 39. b6 {[%emt 0:00:01]} Kd6 {[%emt 0:00:08]
} 40. Kd4 {[%emt 0:00:00]} Bh1 {[%emt 0:00:13]} 41. b7 {[%emt 0:00:51]} Kc7 {
[%emt 0:00:04]} 42. Ke5 {[%emt 0:00:00]} Bf3 {[%emt 0:01:03]} 43. Kf6 {[%emt 0:
00:02]} Bd5 {[%emt 0:00:03]} 44. Ke5 {[%emt 0:01:35]} Bf3 {[%emt 0:00:18]} 45.
Kf5 {[%emt 0:00:36]} Kb8 {[%emt 0:00:22]} 46. Nc4 {[%emt 0:00:37]} Bxb7 {[%emt
0:00:09]} 47. Ne5 {[%emt 0:00:09]} Bd5 {[%emt 0:00:05]} 48. Kf6 {[%emt 0:00:01]
} Kc7 {[%emt 0:00:07]} 49. Nxf7 {[%emt 0:00:08]} h5 {[%emt 0:00:02]} 50. Nxg5 {
[%emt 0:00:11]} Kd7 {[%emt 0:00:03]} 51. h4 {[%emt 0:00:03]} Ke8 {[%emt 0:00:
04]} 52. Nh3 {[%emt 0:00:03]} Bf3 {[%emt 0:00:03]} 53. Nf4 {[%emt 0:00:00]} 1-0

[Event "Petrov Memorial Rapid"]
[Site "Jurmala"]
[Date "2015.03.08"]
[Round "11"]
[White "Van Wely, Loek"]
[Black "Khalifman, Alexander"]
[Result "1/2-1/2"]
[ECO "A30"]
[WhiteElo "2662"]
[BlackElo "2585"]
[Annotator "Robot 11"]
[PlyCount "73"]
[EventDate "2015.??.??"]
[EventCountry "LAT"]
[TimeControl "840+5"]

1. c4 {[%emt 0:00:00]} c5 {[%emt 0:00:00]} 2. Nf3 {[%emt 0:00:00]} g6 {[%emt 0:
00:00]} 3. d4 {[%emt 0:00:00]} cxd4 {[%emt 0:00:00]} 4. Nxd4 {[%emt 0:00:00]}
Nc6 {[%emt 0:00:00]} 5. e4 {[%emt 0:00:00]} Nf6 {[%emt 0:00:00]} 6. Nc3 {[%emt
0:00:00]} d6 {[%emt 0:00:00]} 7. Be2 {[%emt 0:00:00]} Nxd4 {[%emt 0:00:00]} 8.
Qxd4 {[%emt 0:00:00]} Bg7 {[%emt 0:00:00]} 9. Be3 {[%emt 0:00:00]} O-O {[%emt
0:00:00]} 10. Qd2 {[%emt 0:00:00]} a5 {[%emt 0:00:00]} 11. O-O {[%emt 0:00:00]}
a4 {[%emt 0:00:00]} 12. f3 {[%emt 0:00:00]} Qa5 {[%emt 0:00:00]} 13. Rfc1 {
[%emt 0:00:05]} Be6 {[%emt 0:00:00]} 14. Rab1 {[%emt 0:00:14]} Rfc8 {[%emt 0:
00:17]} 15. b4 {[%emt 0:00:06]} axb3 {[%emt 0:00:01]} 16. axb3 {[%emt 0:00:00]}
Qb4 {[%emt 0:00:10]} 17. Kh1 {[%emt 0:00:53]} Nd7 {[%emt 0:00:18]} 18. Bg5 {
[%emt 0:03:33]} Bf6 {[%emt 0:01:03]} 19. Nd5 {[%emt 0:00:22]} Qxd2 {[%emt 0:00:
05]} 20. Nxf6+ {[%emt 0:00:01]} Nxf6 {[%emt 0:01:00]} 21. Bxd2 {[%emt 0:00:02]}
Ra2 {[%emt 0:00:01]} 22. Rd1 {[%emt 0:00:01]} b5 {[%emt 0:01:48]} 23. cxb5 {
[%emt 0:04:29]} Rcc2 {[%emt 0:00:11]} 24. b6 {[%emt 0:00:01]} Rxd2 {[%emt 0:01:
53]} 25. Rxd2 {[%emt 0:00:06]} Rxd2 {[%emt 0:00:00]} 26. Bb5 {[%emt 0:01:25]}
Bc8 {[%emt 0:00:47]} 27. Bc6 {[%emt 0:00:05]} Rc2 {[%emt 0:01:39]} 28. b7 {
[%emt 0:00:05]} Bxb7 {[%emt 0:00:00]} 29. Bxb7 {[%emt 0:00:00]} Rc7 {[%emt 0:
00:52]} 30. Ba6 {[%emt 0:00:12]} Rc6 {[%emt 0:00:11]} 31. Bf1 {[%emt 0:00:23]}
d5 {[%emt 0:00:13]} 32. exd5 {[%emt 0:02:16]} Nxd5 {[%emt 0:00:00]} 33. b4 {
[%emt 0:00:01]} Rc3 {[%emt 0:01:08]} 34. b5 {[%emt 0:00:24]} Nb6 {[%emt 0:00:
01]} 35. Kg1 {[%emt 0:00:20]} Rc2 {[%emt 0:00:00]} 36. Rd1 {[%emt 0:00:35]} Rb2
{[%emt 0:00:22]} 37. h4 {[%emt 0:00:19]} 1/2-1/2